{"text_format":"3","workbook":"xlsx","n_sheets":1,"sheets":["Калкулатор на заеми"],"not_rendered":{"defined_names":9},"read":"whole","date_system":"1900"}

{"sheet":"Калкулатор на заеми","index":0,"n_rows":22,"n_cols":13,"rows_kept":22,"merged":[[1,1,1,3],[1,6,2,8],[1,11,2,12],[2,1,2,3],[6,5,6,6],[7,5,7,6],[10,2,10,5],[10,6,10,8],[10,9,10,12],[18,2,18,12]]}
[]
[null,"КАЛКУЛАТОР НА УНИВЕРСИТЕТСКИ ",{"$nulls":4},{"v":50000,"d":"50,000 лв."},{"$nulls":4},"2011-05-10"]
[null,"ЗАЕМ "]
[]
[null," Препоръчително е общото месечно плащане на заем за обучение да не надвишава 8% от първата ви годишна заплата."]
[]
[null,null,"Комбинираното ви текущо месечно плащане е:",null,null,{"$f":"УниверситетскиЗаеми[[#Totals],[Текущо месечно плащане]]","v":{"v":328.58590726058833,"d":"328.59 лв."}},null,null,"Комбинираното ви планирано месечно плащане е:",{"$nulls":3},{"$f":"УниверситетскиЗаеми[[#Totals],[Планирано плащане]]","v":{"v":328.58590726058833,"d":"328.59 лв."}}]
[null,null,"Процент от месечен доход:",null,null,{"$f":"УниверситетскиЗаеми[[#Totals],[Текущо месечно плащане]]/ПриблизителнаМесечнаЗаплата","v":{"v":0.07886061774254119,"d":"7.89%"}},null,null," Процент от месечен доход:",{"$nulls":3},{"$f":"УниверситетскиЗаеми[[#Totals],[Планирано плащане]]/ПриблизителнаМесечнаЗаплата","v":{"v":0.07886061774254119,"d":"7.89%"}}]
[]
[]
[null,null,"ОБЩА ИНФОРМАЦИЯ ЗА ЗАЕМА",{"$nulls":3},"ДАННИ ЗА ИЗПЛАЩАНЕ НА ЗАЕМА",null,null,"ПОДРОБНИ ДАННИ ЗА ПЛАЩАНЕ"]
[null,null,"Заем №","Заемодател","Сума на заема","Годишен \nлихвен процент","Начална дата","Продължителност (години)","Крайна дата","Текущо месечно плащане","Обща \nлихва","Планирано плащане","Годишно \nплащане"]
[null,null,"10998M88","Заемодател 1",{"v":10000,"d":"10,000.00 лв."},{"v":0.05,"d":"5.00%"},"2012-04-01",10,{"$f":"IF(AND(УниверситетскиЗаеми[[#This Row],[Начална дата]]>0,УниверситетскиЗаеми[[#This Row],[Продължителност (години)]]>0),EDATE(УниверситетскиЗаеми[[#This Row],[Начална дата]],УниверситетскиЗаеми[[#This Row],[Продължителност (години)]]*12),\"\")","v":"2022-04-01"},{"$f":"IF(AND(НачалоЗаемДнес,COUNT(УниверситетскиЗаеми[[#This Row],[Сума на заема]]:УниверситетскиЗаеми[[#This Row],[Продължителност (години)]])=4,УниверситетскиЗаеми[[#This Row],[Начална дата]]<TODAY()),PMT(УниверситетскиЗаеми[[#This Row],[Годишен \nлихвен процент]]/12,УниверситетскиЗаеми[[#This Row],[Продължителност (години)]]*12,-УниверситетскиЗаеми[[#This Row],[Сума на заема]],0,0),\"\")","v":{"v":106.06551523907524,"d":"106.07 лв."}},{"$f":"IFERROR((УниверситетскиЗаеми[[#This Row],[Планирано плащане]]*(УниверситетскиЗаеми[[#This Row],[Продължителност (години)]]*12))-УниверситетскиЗаеми[[#This Row],[Сума на заема]],\"\")","v":{"v":2727.8618286890287,"d":"2,727.86 лв."}},{"$f":"IF(COUNTA(УниверситетскиЗаеми[[#This Row],[Сума на заема]]:УниверситетскиЗаеми[[#This Row],[Продължителност (години)]])<>4,\"\",PMT(УниверситетскиЗаеми[[#This Row],[Годишен \nлихвен процент]]/12,УниверситетскиЗаеми[[#This Row],[Продължителност (години)]]*12,-УниверситетскиЗаеми[[#This Row],[Сума на заема]],0,0))","v":{"v":106.06551523907524,"d":"106.07 лв."}},{"$f":"IFERROR(УниверситетскиЗаеми[[#This Row],[Планирано плащане]]*12,\"\")","v":{"v":1272.7861828689029,"d":"1,272.79 лв."}}]
[null,null,"20987N87","Заемодател 2",{"v":8000,"d":"8,000.00 лв."},{"v":0.05,"d":"5.00%"},"2012-05-01",10,{"$f":"IF(AND(УниверситетскиЗаеми[[#This Row],[Начална дата]]>0,УниверситетскиЗаеми[[#This Row],[Продължителност (години)]]>0),EDATE(УниверситетскиЗаеми[[#This Row],[Начална дата]],УниверситетскиЗаеми[[#This Row],[Продължителност (години)]]*12),\"\")","v":"2022-05-01"},{"$f":"IF(AND(НачалоЗаемДнес,COUNT(УниверситетскиЗаеми[[#This Row],[Сума на заема]]:УниверситетскиЗаеми[[#This Row],[Продължителност (години)]])=4,УниверситетскиЗаеми[[#This Row],[Начална дата]]<TODAY()),PMT(УниверситетскиЗаеми[[#This Row],[Годишен \nлихвен процент]]/12,УниверситетскиЗаеми[[#This Row],[Продължителност (години)]]*12,-УниверситетскиЗаеми[[#This Row],[Сума на заема]],0,0),\"\")","v":{"v":84.85241219126019,"d":"84.85 лв."}},{"$f":"IFERROR((УниверситетскиЗаеми[[#This Row],[Планирано плащане]]*(УниверситетскиЗаеми[[#This Row],[Продължителност (години)]]*12))-УниверситетскиЗаеми[[#This Row],[Сума на заема]],\"\")","v":{"v":2182.289462951223,"d":"2,182.29 лв."}},{"$f":"IF(COUNTA(УниверситетскиЗаеми[[#This Row],[Сума на заема]]:УниверситетскиЗаеми[[#This Row],[Продължителност (години)]])<>4,\"\",PMT(УниверситетскиЗаеми[[#This Row],[Годишен \nлихвен процент]]/12,УниверситетскиЗаеми[[#This Row],[Продължителност (години)]]*12,-УниверситетскиЗаеми[[#This Row],[Сума на заема]],0,0))","v":{"v":84.85241219126019,"d":"84.85 лв."}},{"$f":"IFERROR(УниверситетскиЗаеми[[#This Row],[Планирано плащане]]*12,\"\")","v":{"v":1018.2289462951222,"d":"1,018.23 лв."}}]
[null,null,"36785LM","Заемодател 3",{"v":6000,"d":"6,000.00 лв."},{"v":0.045,"d":"4.50%"},"2012-03-01",10,{"$f":"IF(AND(УниверситетскиЗаеми[[#This Row],[Начална дата]]>0,УниверситетскиЗаеми[[#This Row],[Продължителност (години)]]>0),EDATE(УниверситетскиЗаеми[[#This Row],[Начална дата]],УниверситетскиЗаеми[[#This Row],[Продължителност (години)]]*12),\"\")","v":"2022-03-01"},{"$f":"IF(AND(НачалоЗаемДнес,COUNT(УниверситетскиЗаеми[[#This Row],[Сума на заема]]:УниверситетскиЗаеми[[#This Row],[Продължителност (години)]])=4,УниверситетскиЗаеми[[#This Row],[Начална дата]]<TODAY()),PMT(УниверситетскиЗаеми[[#This Row],[Годишен \nлихвен процент]]/12,УниверситетскиЗаеми[[#This Row],[Продължителност (години)]]*12,-УниверситетскиЗаеми[[#This Row],[Сума на заема]],0,0),\"\")","v":{"v":62.18304525420918,"d":"62.18 лв."}},{"$f":"IFERROR((УниверситетскиЗаеми[[#This Row],[Планирано плащане]]*(УниверситетскиЗаеми[[#This Row],[Продължителност (години)]]*12))-УниверситетскиЗаеми[[#This Row],[Сума на заема]],\"\")","v":{"v":1461.9654305051017,"d":"1,461.97 лв."}},{"$f":"IF(COUNTA(УниверситетскиЗаеми[[#This Row],[Сума на заема]]:УниверситетскиЗаеми[[#This Row],[Продължителност (години)]])<>4,\"\",PMT(УниверситетскиЗаеми[[#This Row],[Годишен \nлихвен процент]]/12,УниверситетскиЗаеми[[#This Row],[Продължителност (години)]]*12,-УниверситетскиЗаеми[[#This Row],[Сума на заема]],0,0))","v":{"v":62.18304525420918,"d":"62.18 лв."}},{"$f":"IFERROR(УниверситетскиЗаеми[[#This Row],[Планирано плащане]]*12,\"\")","v":{"v":746.1965430505102,"d":"746.20 лв."}}]
[null,null,"765R43","Заемодател 4",{"v":4000,"d":"4,000.00 лв."},{"v":0.05,"d":"5.00%"},"2012-05-01",5,{"$f":"IF(AND(УниверситетскиЗаеми[[#This Row],[Начална дата]]>0,УниверситетскиЗаеми[[#This Row],[Продължителност (години)]]>0),EDATE(УниверситетскиЗаеми[[#This Row],[Начална дата]],УниверситетскиЗаеми[[#This Row],[Продължителност (години)]]*12),\"\")","v":"2017-05-01"},{"$f":"IF(AND(НачалоЗаемДнес,COUNT(УниверситетскиЗаеми[[#This Row],[Сума на заема]]:УниверситетскиЗаеми[[#This Row],[Продължителност (години)]])=4,УниверситетскиЗаеми[[#This Row],[Начална дата]]<TODAY()),PMT(УниверситетскиЗаеми[[#This Row],[Годишен \nлихвен процент]]/12,УниверситетскиЗаеми[[#This Row],[Продължителност (години)]]*12,-УниверситетскиЗаеми[[#This Row],[Сума на заема]],0,0),\"\")","v":{"v":75.48493457604374,"d":"75.48 лв."}},{"$f":"IFERROR((УниверситетскиЗаеми[[#This Row],[Планирано плащане]]*(УниверситетскиЗаеми[[#This Row],[Продължителност (години)]]*12))-УниверситетскиЗаеми[[#This Row],[Сума на заема]],\"\")","v":{"v":529.0960745626244,"d":"529.10 лв."}},{"$f":"IF(COUNTA(УниверситетскиЗаеми[[#This Row],[Сума на заема]]:УниверситетскиЗаеми[[#This Row],[Продължителност (години)]])<>4,\"\",PMT(УниверситетскиЗаеми[[#This Row],[Годишен \nлихвен процент]]/12,УниверситетскиЗаеми[[#This Row],[Продължителност (години)]]*12,-УниверситетскиЗаеми[[#This Row],[Сума на заема]],0,0))","v":{"v":75.48493457604374,"d":"75.48 лв."}},{"$f":"IFERROR(УниверситетскиЗаеми[[#This Row],[Планирано плащане]]*12,\"\")","v":{"v":905.8192149125249,"d":"905.82 лв."}}]
[null,null,"Общи суми",null,{"$f":"SUBTOTAL(109,УниверситетскиЗаеми[Сума на заема])","v":{"v":28000,"d":"28,000.00 лв."}},{"$nulls":4},{"$f":"SUBTOTAL(109,УниверситетскиЗаеми[Текущо месечно плащане])","v":{"v":328.58590726058833,"d":"328.59 лв."}},{"$f":"SUBTOTAL(109,УниверситетскиЗаеми[Обща \nлихва])","v":{"v":6901.212796707978,"d":"6,901.21 лв."}},{"$f":"SUBTOTAL(109,УниверситетскиЗаеми[Планирано плащане])","v":{"v":328.58590726058833,"d":"328.59 лв."}},{"$f":"SUBTOTAL(109,УниверситетскиЗаеми[Годишно \nплащане])","v":{"v":3943.03088712706,"d":"3,943.03 лв."}}]
[null,null,"Средни суми",null,{"$f":"AVERAGE(УниверситетскиЗаеми[Сума на заема])","v":{"v":7000,"d":"7,000.00 лв."}},{"$f":"AVERAGE(УниверситетскиЗаеми[Годишен \nлихвен процент])","v":{"v":0.04875,"d":"4.88%"}},{"$nulls":4},{"$f":"AVERAGE(УниверситетскиЗаеми[Обща \nлихва])","v":{"v":1725.3031991769944,"d":"1,725.30 лв."}},null,{"$f":"AVERAGE(УниверситетскиЗаеми[Годишно \nплащане])","v":{"v":985.757721781765,"d":"985.76 лв."}}]
[]
[{"$nulls":10},"Общо консолидирано плащане на заем:",null,{"$f":"УниверситетскиЗаеми[[#Totals],[Сума на заема]]+УниверситетскиЗаеми[[#Totals],[Обща \nлихва]]","v":{"v":34901.21279670798,"d":"34,901.21 лв."}}]
[]
[{"$nulls":10},"Очакван месечен доход след завършване:",null,{"$f":"(ПриблизителнаГодишнаЗаплата/12)","v":{"v":4166.666666666667,"d":"4,166.67 лв."}}]